[Event "*** Titled Tuesday Blitz"]
[Site "Chess.com"]
[Date "2021.02.02"]
[Round "6"]
[White "Eternauta2400"]
[Black "Papullon"]
[Result "1-0"]
[WhiteElo "2435"]
[BlackElo "2125"]
[TimeControl "180+1"]
[EndTime "11:08:36 PST"]
[Termination "Eternauta2400 won by checkmate"]

1. Nf3 {[%clk 0:03:00.9]} 1... c5 {[%clk 0:02:59.2]} 2. c4 {[%clk 0:03:00.6]}
2... Nc6 {[%clk 0:02:58.7]} 3. Nc3 {[%clk 0:02:59.9]} 3... Nd4 {[%clk
0:02:58.2]} 4. e3 {[%clk 0:02:56.1]} 4... Nxf3+ {[%clk 0:02:57.8]} 5. Qxf3
{[%clk 0:02:55.8]} 5... g6 {[%clk 0:02:57.9]} 6. d4 {[%clk 0:02:53.2]} 6... Bg7
{[%clk 0:02:57.9]} 7. Qd1 {[%clk 0:02:47.4]} 7... Nh6 {[%clk 0:02:51.2]} 8. g3
{[%clk 0:02:35.5]} 8... cxd4 {[%clk 0:02:43]} 9. exd4 {[%clk 0:02:34.5]} 9...
Nf5 {[%clk 0:02:41.7]} 10. Ne2 {[%clk 0:02:25.3]} 10... d5 {[%clk 0:02:31.6]}
11. c5 {[%clk 0:02:09.4]} 11... b6 {[%clk 0:02:21.1]} 12. Bg2 {[%clk 0:02:03]}
12... bxc5 {[%clk 0:02:20.1]} 13. dxc5 {[%clk 0:02:00.4]} 13... Qa5+ {[%clk
0:02:18.8]} 14. Bd2 {[%clk 0:01:57.3]} 14... Qxc5 {[%clk 0:02:16.2]} 15. Rc1
{[%clk 0:01:55.2]} 15... Qd6 {[%clk 0:02:06.3]} 16. O-O {[%clk 0:01:44.9]} 16...
O-O {[%clk 0:02:05.9]} 17. Bf4 {[%clk 0:01:43.7]} 17... e5 {[%clk 0:01:37.6]}
18. Bxd5 {[%clk 0:01:39]} 18... Rb8 {[%clk 0:01:33.3]} 19. Rc6 {[%clk
0:01:22.9]} 19... Qd7 {[%clk 0:01:23]} 20. Bc1 {[%clk 0:01:10.1]} 20... Bb7
{[%clk 0:01:21.4]} 21. Rc5 {[%clk 0:01:01.8]} 21... Rfd8 {[%clk 0:01:19.6]} 22.
Nc3 {[%clk 0:00:58.2]} 22... Bf8 {[%clk 0:01:16.2]} 23. Rb5 {[%clk 0:00:40.6]}
23... Ba6 {[%clk 0:01:02.4]} 24. Rxb8 {[%clk 0:00:34.6]} 24... Rxb8 {[%clk
0:01:02]} 25. Be4 {[%clk 0:00:22]} 25... Nd4 {[%clk 0:00:58.1]} 26. Re1 {[%clk
0:00:19]} 26... Bb4 {[%clk 0:00:46.6]} 27. Nd5 {[%clk 0:00:16.8]} 27... Be7
{[%clk 0:00:37.6]} 28. b3 {[%clk 0:00:16.3]} 28... f5 {[%clk 0:00:33.5]} 29.
Nxe7+ {[%clk 0:00:12.8]} 29... Qxe7 {[%clk 0:00:33.1]} 30. Bd5+ {[%clk
0:00:13.2]} 30... Kf8 {[%clk 0:00:29.6]} 31. Bf4 {[%clk 0:00:13.2]} 31... Rd8
{[%clk 0:00:19.1]} 32. Rxe5 {[%clk 0:00:11.9]} 32... Qb4 {[%clk 0:00:11]} 33.
Bh6# {[%clk 0:00:12]} 1-0

[Event "*** Titled Tuesday Blitz"]
[Site "Chess.com"]
[Date "2021.02.02"]
[Round "6"]
[White "GMKrikor"]
[Black "Milchone1"]
[Result "0-1"]
[WhiteElo "2786"]
[BlackElo "2523"]
[TimeControl "180+1"]
[EndTime "11:08:38 PST"]
[Termination "Milchone1 won by resignation"]

1. Nf3 {[%clk 0:02:48.1]} 1... Nf6 {[%clk 0:02:59.7]} 2. c4 {[%clk 0:02:47.7]}
2... g6 {[%clk 0:02:53.2]} 3. Nc3 {[%clk 0:02:47.5]} 3... Bg7 {[%clk 0:02:53.4]}
4. e4 {[%clk 0:02:47.4]} 4... O-O {[%clk 0:02:54.3]} 5. d4 {[%clk 0:02:47]} 5...
d6 {[%clk 0:02:54.4]} 6. h3 {[%clk 0:02:46.4]} 6... c5 {[%clk 0:02:50.7]} 7. Be2
{[%clk 0:02:44.7]} 7... Nc6 {[%clk 0:02:46.9]} 8. Be3 {[%clk 0:02:43.3]} 8...
Nd7 {[%clk 0:02:44.1]} 9. d5 {[%clk 0:02:30.4]} 9... Na5 {[%clk 0:02:43.4]} 10.
O-O {[%clk 0:02:27.8]} 10... a6 {[%clk 0:02:43.4]} 11. Qd2 {[%clk 0:02:14.1]}
11... b5 {[%clk 0:02:41.2]} 12. cxb5 {[%clk 0:02:12.5]} 12... axb5 {[%clk
0:02:42.1]} 13. Nxb5 {[%clk 0:02:07.2]} 13... Ba6 {[%clk 0:02:36.9]} 14. Qc2
{[%clk 0:02:04.2]} 14... Qb6 {[%clk 0:02:30.1]} 15. a4 {[%clk 0:02:03.2]} 15...
Qb7 {[%clk 0:02:30.1]} 16. Bd2 {[%clk 0:01:42.5]} 16... Qb6 {[%clk 0:02:26.8]}
17. Rab1 {[%clk 0:01:39.5]} 17... c4 {[%clk 0:02:24.8]} 18. Bxa5 {[%clk
0:01:32.4]} 18... Qxa5 {[%clk 0:02:24.7]} 19. Bxc4 {[%clk 0:01:33.2]} 19... Rfc8
{[%clk 0:02:25]} 20. b3 {[%clk 0:01:32.1]} 20... Bxb5 {[%clk 0:02:23.4]} 21.
axb5 {[%clk 0:01:31.4]} 21... Nb6 {[%clk 0:02:15.6]} 22. Qe2 {[%clk 0:01:21.1]}
22... Qa2 {[%clk 0:02:09.5]} 23. Qe3 {[%clk 0:01:14.4]} 23... Nxc4 {[%clk
0:01:49.2]} 24. bxc4 {[%clk 0:01:12.7]} 24... Rxc4 {[%clk 0:01:50.1]} 25. b6
{[%clk 0:01:10.5]} 25... Rb8 {[%clk 0:01:50.4]} 26. e5 {[%clk 0:00:54.3]} 26...
Qa5 {[%clk 0:01:33.4]} 27. exd6 {[%clk 0:00:46.9]} 27... exd6 {[%clk 0:01:32.9]}
28. Qe7 {[%clk 0:00:43.7]} 28... Bf8 {[%clk 0:01:19.3]} 29. Qa7 {[%clk
0:00:23.6]} 29... Qxa7 {[%clk 0:01:18.8]} 30. bxa7 {[%clk 0:00:24.5]} 30... Ra8
{[%clk 0:01:19.3]} 31. Rb7 {[%clk 0:00:22.1]} 31... Ra4 {[%clk 0:01:19.1]} 32.
Ng5 {[%clk 0:00:15.5]} 32... R4xa7 {[%clk 0:01:18.7]} 33. Rfb1 {[%clk 0:00:15]}
33... Be7 {[%clk 0:01:17.2]} 34. Ne4 {[%clk 0:00:07.8]} 34... Kf8 {[%clk
0:01:14.5]} 35. g3 {[%clk 0:00:07.8]} 35... Rxb7 {[%clk 0:01:13.1]} 36. Rxb7
{[%clk 0:00:07.1]} 36... Ra4 {[%clk 0:01:14]} 37. f3 {[%clk 0:00:04.5]} 37...
Rd4 {[%clk 0:01:13.5]} 38. Rb5 {[%clk 0:00:03.7]} 38... f5 {[%clk 0:01:12.1]}
39. Nf2 {[%clk 0:00:02.8]} 39... Rd2 {[%clk 0:01:10]} 40. Kf1 {[%clk 0:00:03.2]}
40... Bf6 {[%clk 0:01:09.4]} 41. Rb8+ {[%clk 0:00:02.3]} 41... Kf7 {[%clk
0:01:07.9]} 42. Rb7+ {[%clk 0:00:03]} 42... Be7 {[%clk 0:01:07.9]} 43. Rb5
{[%clk 0:00:01.3]} 43... Bf6 {[%clk 0:01:06]} 44. Ke1 {[%clk 0:00:01.7]} 44...
Bc3 {[%clk 0:01:05.5]} 45. Kf1 {[%clk 0:00:02.2]} 45... Bd4 {[%clk 0:01:04.4]}
46. Nh1 {[%clk 0:00:02.3]} 46... Rd1+ {[%clk 0:01:03.1]} 47. Kg2 {[%clk
0:00:02.9]} 47... Rg1+ {[%clk 0:01:01.9]} 48. Kh2 {[%clk 0:00:03.2]} 48... Rd1
{[%clk 0:00:58.7]} 49. f4 {[%clk 0:00:03.6]} 49... Rd2+ {[%clk 0:00:55.3]} 0-1

[Event "*** Titled Tuesday Blitz"]
[Site "Chess.com"]
[Date "2021.02.02"]
[Round "6"]
[White "BL4D3RUNN3R"]
[Black "Chamal_Gedgafov"]
[Result "0-1"]
[WhiteElo "2206"]
[BlackElo "2367"]
[TimeControl "180+1"]
[EndTime "11:08:38 PST"]
[Termination "Chamal_Gedgafov won on time"]

1. Nf3 {[%clk 0:03:00.9]} 1... Nf6 {[%clk 0:02:58.9]} 2. c4 {[%clk 0:03:00.1]}
2... g6 {[%clk 0:02:58.6]} 3. b4 {[%clk 0:02:59]} 3... Bg7 {[%clk 0:02:58.8]} 4.
Bb2 {[%clk 0:02:58.5]} 4... d6 {[%clk 0:02:58.3]} 5. g3 {[%clk 0:02:57.7]} 5...
O-O {[%clk 0:02:58.7]} 6. Bg2 {[%clk 0:02:57.6]} 6... e5 {[%clk 0:02:59]} 7. O-O
{[%clk 0:02:56.9]} 7... a5 {[%clk 0:02:57.8]} 8. b5 {[%clk 0:02:56.4]} 8... Nbd7
{[%clk 0:02:52.4]} 9. Nc3 {[%clk 0:02:56]} 9... Re8 {[%clk 0:02:36]} 10. Rc1
{[%clk 0:02:53.6]} 10... Nb6 {[%clk 0:02:32.5]} 11. d3 {[%clk 0:02:49.8]} 11...
e4 {[%clk 0:02:32.2]} 12. Nd4 {[%clk 0:02:30.8]} 12... e3 {[%clk 0:02:19.3]} 13.
f3 {[%clk 0:02:04.5]} 13... Nfd7 {[%clk 0:02:01.1]} 14. Nc2 {[%clk 0:01:58.3]}
14... Nc5 {[%clk 0:01:47.9]} 15. d4 {[%clk 0:01:44.7]} 15... Nxc4 {[%clk
0:01:43.6]} 16. Ba1 {[%clk 0:01:16.4]} 16... Nd7 {[%clk 0:01:42.7]} 17. Qd3
{[%clk 0:01:13.2]} 17... Ndb6 {[%clk 0:01:42]} 18. Nd1 {[%clk 0:00:57.9]} 18...
Bf5 {[%clk 0:01:35]} 19. Qc3 {[%clk 0:00:56.9]} 19... Bxc2 {[%clk 0:01:24.8]}
20. Qxc2 {[%clk 0:00:54.4]} 20... Qe7 {[%clk 0:01:00.3]} 21. Qd3 {[%clk
0:00:49.5]} 21... d5 {[%clk 0:00:53.2]} 22. f4 {[%clk 0:00:45.6]} 22... c6
{[%clk 0:00:52.9]} 23. bxc6 {[%clk 0:00:41.9]} 23... bxc6 {[%clk 0:00:52.4]} 24.
Nb2 {[%clk 0:00:39.5]} 24... Rab8 {[%clk 0:00:39.6]} 25. Nxc4 {[%clk 0:00:34.3]}
25... Nxc4 {[%clk 0:00:39.1]} 26. Kh1 {[%clk 0:00:26.3]} 26... Qb4 {[%clk
0:00:34.5]} 27. f5 {[%clk 0:00:24.4]} 27... Qd2 {[%clk 0:00:28.6]} 28. fxg6
{[%clk 0:00:21.6]} 28... hxg6 {[%clk 0:00:27.2]} 29. Rfd1 {[%clk 0:00:14.6]}
29... Qxd3 {[%clk 0:00:25.5]} 30. exd3 {[%clk 0:00:11.3]} 30... Nb2 {[%clk
0:00:24]} 31. Bxb2 {[%clk 0:00:07.7]} 31... Rxb2 {[%clk 0:00:23.5]} 32. Rxc6
{[%clk 0:00:06.7]} 32... e2 {[%clk 0:00:23]} 33. Re1 {[%clk 0:00:05.9]} 33...
Bxd4 {[%clk 0:00:23.2]} 34. Bxd5 {[%clk 0:00:04.3]} 34... Bf2 {[%clk 0:00:22.7]}
0-1

[Event "*** Titled Tuesday Blitz"]
[Site "Chess.com"]
[Date "2021.02.02"]
[Round "6"]
[White "WiktoriaPOL"]
[Black "novocane"]
[Result "1/2-1/2"]
[WhiteElo "1988"]
[BlackElo "2243"]
[TimeControl "180+1"]
[EndTime "11:08:38 PST"]
[Termination "Game drawn by repetition"]

1. e4 {[%clk 0:03:00.9]} 1... c5 {[%clk 0:02:59.6]} 2. d4 {[%clk 0:02:59.9]}
2... cxd4 {[%clk 0:02:59.9]} 3. c3 {[%clk 0:03:00]} 3... dxc3 {[%clk 0:03:00.3]}
4. Nxc3 {[%clk 0:02:58.8]} 4... Nc6 {[%clk 0:03:00.5]} 5. Nf3 {[%clk 0:02:57]}
5... d6 {[%clk 0:03:00.4]} 6. Bc4 {[%clk 0:02:44.5]} 6... a6 {[%clk 0:02:57.6]}
7. O-O {[%clk 0:02:43.6]} 7... Nf6 {[%clk 0:02:55.2]} 8. e5 {[%clk 0:02:35.6]}
8... dxe5 {[%clk 0:02:53.6]} 9. Qxd8+ {[%clk 0:02:32.9]} 9... Nxd8 {[%clk
0:02:54.5]} 10. Nxe5 {[%clk 0:02:32.5]} 10... e6 {[%clk 0:02:55]} 11. Bg5 {[%clk
0:02:31.1]} 11... Be7 {[%clk 0:02:54]} 12. Rfd1 {[%clk 0:02:29.8]} 12... O-O
{[%clk 0:02:53.6]} 13. Rd2 {[%clk 0:02:20.5]} 13... b5 {[%clk 0:02:46]} 14. Bb3
{[%clk 0:02:16.5]} 14... h6 {[%clk 0:02:25.7]} 15. Bh4 {[%clk 0:02:11.3]} 15...
Bb7 {[%clk 0:02:19.1]} 16. Rad1 {[%clk 0:02:04.1]} 16... Nc6 {[%clk 0:02:16.4]}
17. Bxf6 {[%clk 0:01:59.7]} 17... Bxf6 {[%clk 0:02:13.8]} 18. Nd7 {[%clk
0:01:58.3]} 18... Rfd8 {[%clk 0:02:12.9]} 19. Nxf6+ {[%clk 0:01:55.9]} 19...
gxf6 {[%clk 0:02:13.8]} 20. Rd7 {[%clk 0:01:55.4]} 20... Rxd7 {[%clk 0:01:58.7]}
21. Rxd7 {[%clk 0:01:56.3]} 21... Na5 {[%clk 0:01:37]} 22. Bd1 {[%clk
0:01:32.7]} 22... b4 {[%clk 0:01:27.2]} 23. Ne2 {[%clk 0:01:26.1]} 23... Bd5
{[%clk 0:01:24.2]} 24. f3 {[%clk 0:01:19.8]} 24... Rc8 {[%clk 0:01:17.4]} 25. b3
{[%clk 0:01:14.7]} 25... Bc6 {[%clk 0:01:09.4]} 26. Rd6 {[%clk 0:01:09.9]} 26...
Bb5 {[%clk 0:01:08.6]} 27. Kf2 {[%clk 0:01:06.3]} 27... Nc6 {[%clk 0:01:02.8]}
28. Nd4 {[%clk 0:00:57.2]} 28... Nxd4 {[%clk 0:01:01.9]} 29. Rxd4 {[%clk
0:00:57.8]} 29... a5 {[%clk 0:00:58.8]} 30. Rd6 {[%clk 0:00:47.4]} 30... Kf8
{[%clk 0:00:55.9]} 31. Ke3 {[%clk 0:00:41.2]} 31... Ke7 {[%clk 0:00:55.3]} 32.
Rd4 {[%clk 0:00:39.3]} 32... Rd8 {[%clk 0:00:50.7]} 33. Rxd8 {[%clk 0:00:34.2]}
33... Kxd8 {[%clk 0:00:51.6]} 34. Kd4 {[%clk 0:00:33.5]} 34... Kc7 {[%clk
0:00:48.7]} 35. Kc5 {[%clk 0:00:33.3]} 35... Bf1 {[%clk 0:00:48.6]} 36. g3
{[%clk 0:00:33.1]} 36... f5 {[%clk 0:00:36.5]} 37. f4 {[%clk 0:00:32.7]} 37...
f6 {[%clk 0:00:35]} 38. Bc2 {[%clk 0:00:28.2]} 38... Be2 {[%clk 0:00:29.6]} 39.
Bb1 {[%clk 0:00:22.6]} 39... Bf1 {[%clk 0:00:28.6]} 40. Bc2 {[%clk 0:00:22]}
40... Be2 {[%clk 0:00:28.5]} 41. Bb1 {[%clk 0:00:21.8]} 41... Bf1 {[%clk
0:00:24.3]} 42. Bc2 {[%clk 0:00:21.7]} 1/2-1/2

[Event "*** Titled Tuesday Blitz"]
[Site "Chess.com"]
[Date "2021.02.02"]
[Round "6"]
[White "manipun1"]
[Black "GiorgianBarbosa"]
[Result "0-1"]
[WhiteElo "2258"]
[BlackElo "2493"]
[TimeControl "180+1"]
[EndTime "11:08:39 PST"]
[Termination "GiorgianBarbosa won by resignation"]

1. e4 {[%clk 0:02:52.7]} 1... c6 {[%clk 0:02:57.7]} 2. d4 {[%clk 0:02:52.2]}
2... d5 {[%clk 0:02:58.6]} 3. e5 {[%clk 0:02:51.6]} 3... c5 {[%clk 0:02:58.4]}
4. dxc5 {[%clk 0:02:48.3]} 4... e6 {[%clk 0:02:57.8]} 5. a3 {[%clk 0:02:48.4]}
5... Bxc5 {[%clk 0:02:56.7]} 6. b4 {[%clk 0:02:48.6]} 6... Bb6 {[%clk
0:02:56.7]} 7. Qg4 {[%clk 0:02:48.7]} 7... Ne7 {[%clk 0:02:55.9]} 8. Bd3 {[%clk
0:02:47.4]} 8... Nbc6 {[%clk 0:02:47.6]} 9. Bb2 {[%clk 0:02:47.2]} 9... Kf8
{[%clk 0:02:44.2]} 10. Nf3 {[%clk 0:02:46.2]} 10... h5 {[%clk 0:02:37.4]} 11.
Qg5 {[%clk 0:02:44.7]} 11... Ng8 {[%clk 0:02:15.7]} 12. Qxd8+ {[%clk 0:02:41.7]}
12... Bxd8 {[%clk 0:02:15.8]} 13. h4 {[%clk 0:02:42.6]} 13... Nge7 {[%clk
0:02:13.7]} 14. Nbd2 {[%clk 0:02:42.4]} 14... b6 {[%clk 0:01:58.5]} 15. g3
{[%clk 0:02:40.1]} 15... Bb7 {[%clk 0:01:58.5]} 16. O-O {[%clk 0:02:39.8]} 16...
Bc7 {[%clk 0:01:54.4]} 17. Nb3 {[%clk 0:02:37.5]} 17... g6 {[%clk 0:01:48.7]}
18. b5 {[%clk 0:02:36.7]} 18... Nb8 {[%clk 0:01:45.5]} 19. Nbd4 {[%clk
0:02:36.1]} 19... Nd7 {[%clk 0:01:44.2]} 20. a4 {[%clk 0:02:31.6]} 20... Nc5
{[%clk 0:01:42.3]} 21. Rfe1 {[%clk 0:02:30.7]} 21... Nf5 {[%clk 0:01:21.8]} 22.
Nxf5 {[%clk 0:02:27.8]} 22... gxf5 {[%clk 0:01:22.7]} 23. Nd4 {[%clk 0:02:25.1]}
23... Ke7 {[%clk 0:01:22]} 24. f4 {[%clk 0:02:20.9]} 24... Rhg8 {[%clk
0:01:19.2]} 25. Kf2 {[%clk 0:02:20.5]} 25... Ne4+ {[%clk 0:01:11.4]} 26. Bxe4
{[%clk 0:02:18.3]} 26... fxe4 {[%clk 0:01:12]} 27. Ba3+ {[%clk 0:02:07.4]} 27...
Kd7 {[%clk 0:01:09.1]} 28. Rac1 {[%clk 0:02:03.3]} 28... a6 {[%clk 0:01:00.6]}
29. c4 {[%clk 0:01:58]} 29... axb5 {[%clk 0:01:00.2]} 30. Nxb5 {[%clk 0:01:49]}
30... d4 {[%clk 0:00:38.4]} 31. Nxd4 {[%clk 0:01:34.3]} 31... Rxa4 {[%clk
0:00:33.5]} 32. Nb5 {[%clk 0:01:34.4]} 32... Bc6 {[%clk 0:00:26.9]} 33. Red1+
{[%clk 0:01:27.9]} 33... Kc8 {[%clk 0:00:25.9]} 34. Bd6 {[%clk 0:01:21.1]} 34...
e3+ {[%clk 0:00:22.9]} 35. Kxe3 {[%clk 0:01:16.8]} 35... Rxg3+ {[%clk
0:00:21.4]} 36. Kd4 {[%clk 0:01:16.9]} 36... Bxb5 {[%clk 0:00:19.2]} 37. Rg1
{[%clk 0:00:20.2]} 37... Rxg1 {[%clk 0:00:17.7]} 38. Rxg1 {[%clk 0:00:19.9]}
38... Rxc4+ {[%clk 0:00:18.2]} 39. Ke3 {[%clk 0:00:20.2]} 39... Bxd6 {[%clk
0:00:18]} 40. exd6 {[%clk 0:00:19.2]} 40... Kd7 {[%clk 0:00:18.5]} 41. Rg7
{[%clk 0:00:19.1]} 41... Kxd6 {[%clk 0:00:18.8]} 42. Rxf7 {[%clk 0:00:19.5]}
42... Bc6 {[%clk 0:00:19.1]} 0-1

[Event "*** Titled Tuesday Blitz"]
[Site "Chess.com"]
[Date "2021.02.02"]
[Round "6"]
[White "sokidze"]
[Black "TigrVShlyape"]
[Result "0-1"]
[WhiteElo "2512"]
[BlackElo "2839"]
[TimeControl "180+1"]
[EndTime "11:08:41 PST"]
[Termination "TigrVShlyape won on time"]

1. e4 {[%clk 0:03:00.9]} 1... e5 {[%clk 0:02:57.5]} 2. Nf3 {[%clk 0:03:01.3]}
2... Nc6 {[%clk 0:02:57.1]} 3. Bb5 {[%clk 0:03:01.4]} 3... a6 {[%clk 0:02:56.3]}
4. Ba4 {[%clk 0:03:01.5]} 4... Nf6 {[%clk 0:02:56.7]} 5. O-O {[%clk 0:03:01.4]}
5... Be7 {[%clk 0:02:56.4]} 6. Re1 {[%clk 0:03:01.1]} 6... b5 {[%clk 0:02:55.9]}
7. Bb3 {[%clk 0:03:01.5]} 7... d6 {[%clk 0:02:56.5]} 8. a4 {[%clk 0:03:01.6]}
8... Bd7 {[%clk 0:02:45.5]} 9. c3 {[%clk 0:02:41.5]} 9... O-O {[%clk 0:02:44.6]}
10. axb5 {[%clk 0:02:13]} 10... axb5 {[%clk 0:02:43.6]} 11. Rxa8 {[%clk
0:02:13.9]} 11... Qxa8 {[%clk 0:02:42.9]} 12. d4 {[%clk 0:02:14.8]} 12... Bg4
{[%clk 0:02:37.5]} 13. d5 {[%clk 0:01:29.1]} 13... Na5 {[%clk 0:02:35.1]} 14.
Bc2 {[%clk 0:01:29.1]} 14... c6 {[%clk 0:02:29.1]} 15. dxc6 {[%clk 0:01:26.8]}
15... Qxc6 {[%clk 0:02:28.3]} 16. h3 {[%clk 0:01:22]} 16... Be6 {[%clk 0:02:25]}
17. Ng5 {[%clk 0:01:11.5]} 17... Bd7 {[%clk 0:02:21.2]} 18. Na3 {[%clk
0:01:08.9]} 18... h6 {[%clk 0:02:09.8]} 19. Nf3 {[%clk 0:01:07.2]} 19... Be6
{[%clk 0:02:08.5]} 20. Bd3 {[%clk 0:01:01.3]} 20... Rb8 {[%clk 0:02:03.6]} 21.
Nc2 {[%clk 0:01:00.1]} 21... Qc7 {[%clk 0:01:46.2]} 22. Nb4 {[%clk 0:00:58.3]}
22... Qb7 {[%clk 0:01:42.3]} 23. Qe2 {[%clk 0:00:56.9]} 23... Nc6 {[%clk
0:01:34.4]} 24. Nxc6 {[%clk 0:00:45.4]} 24... Qxc6 {[%clk 0:01:34.1]} 25. Bd2
{[%clk 0:00:46]} 25... Nd7 {[%clk 0:01:32.5]} 26. b4 {[%clk 0:00:42.5]} 26...
Bf6 {[%clk 0:01:03.8]} 27. Ra1 {[%clk 0:00:39.2]} 27... d5 {[%clk 0:00:57.7]}
28. Ra5 {[%clk 0:00:36.3]} 28... dxe4 {[%clk 0:00:58]} 29. Bxe4 {[%clk
0:00:35.7]} 29... Bd5 {[%clk 0:00:55.9]} 30. Bc2 {[%clk 0:00:26.2]} 30... e4
{[%clk 0:00:54.6]} 31. Ne1 {[%clk 0:00:16.3]} 31... Bxc3 {[%clk 0:00:52.5]} 32.
Bxc3 {[%clk 0:00:08.9]} 32... Qxc3 {[%clk 0:00:52.4]} 33. Kh2 {[%clk 0:00:06.4]}
33... Qxb4 {[%clk 0:00:51.1]} 34. Ra1 {[%clk 0:00:05.9]} 34... Nf6 {[%clk
0:00:48.7]} 35. Rb1 {[%clk 0:00:05.6]} 35... Qc5 {[%clk 0:00:45.8]} 36. g3
{[%clk 0:00:04.5]} 36... b4 {[%clk 0:00:44.4]} 37. Ng2 {[%clk 0:00:04.6]} 37...
b3 {[%clk 0:00:44.6]} 38. Bd1 {[%clk 0:00:04.3]} 38... Bc4 {[%clk 0:00:42.9]}
39. Qe1 {[%clk 0:00:04.4]} 39... Qd4 {[%clk 0:00:41]} 40. Ne3 {[%clk 0:00:04.1]}
40... Be6 {[%clk 0:00:40.6]} 41. Be2 {[%clk 0:00:03]} 41... b2 {[%clk
0:00:40.6]} 42. Qd1 {[%clk 0:00:01.8]} 42... Qe5 {[%clk 0:00:34.7]} 0-1

[Event "*** Titled Tuesday Blitz"]
[Site "Chess.com"]
[Date "2021.02.02"]
[Round "6"]
[White "Homino"]
[Black "Savagelittlemole"]
[Result "0-1"]
[WhiteElo "2306"]
[BlackElo "2458"]
[TimeControl "180+1"]
[EndTime "11:08:41 PST"]
[Termination "Savagelittlemole won on time"]

1. e4 {[%clk 0:03:00.9]} 1... c5 {[%clk 0:02:59.6]} 2. Nf3 {[%clk 0:03:00.5]}
2... d6 {[%clk 0:03:00]} 3. d4 {[%clk 0:03:00.6]} 3... cxd4 {[%clk 0:03:00.9]}
4. Nxd4 {[%clk 0:03:01.2]} 4... Nf6 {[%clk 0:03:01.5]} 5. Nc3 {[%clk 0:03:01.4]}
5... a6 {[%clk 0:03:02.2]} 6. Be2 {[%clk 0:03:01.5]} 6... e5 {[%clk 0:03:02.3]}
7. Nb3 {[%clk 0:03:01.7]} 7... Be7 {[%clk 0:03:03]} 8. O-O {[%clk 0:03:01.6]}
8... O-O {[%clk 0:03:03.6]} 9. Kh1 {[%clk 0:03:01.5]} 9... b5 {[%clk 0:03:03.4]}
10. a4 {[%clk 0:02:58.8]} 10... b4 {[%clk 0:02:59.7]} 11. Nd5 {[%clk 0:02:58.6]}
11... Nxd5 {[%clk 0:02:58.8]} 12. exd5 {[%clk 0:02:50.4]} 12... a5 {[%clk
0:02:57.9]} 13. f4 {[%clk 0:02:49.1]} 13... Bf6 {[%clk 0:02:54.8]} 14. Rb1
{[%clk 0:02:31.5]} 14... Nd7 {[%clk 0:02:51.5]} 15. Bf3 {[%clk 0:02:23.4]} 15...
exf4 {[%clk 0:02:48.8]} 16. Bxf4 {[%clk 0:02:23.3]} 16... Ne5 {[%clk 0:02:49.1]}
17. Nd4 {[%clk 0:02:17.7]} 17... Ba6 {[%clk 0:02:35.6]} 18. Be2 {[%clk
0:01:54.6]} 18... Bxe2 {[%clk 0:02:32.9]} 19. Qxe2 {[%clk 0:01:52.4]} 19... Qd7
{[%clk 0:02:31.8]} 20. Nb5 {[%clk 0:01:41.4]} 20... Rfe8 {[%clk 0:02:26.8]} 21.
Qd1 {[%clk 0:01:20.5]} 21... Rac8 {[%clk 0:02:20.3]} 22. c3 {[%clk 0:01:09.4]}
22... bxc3 {[%clk 0:02:19.1]} 23. Nxc3 {[%clk 0:01:08.5]} 23... Nc4 {[%clk
0:02:16]} 24. Qb3 {[%clk 0:00:59.1]} 24... Be5 {[%clk 0:02:10.2]} 25. Bxe5
{[%clk 0:00:48.6]} 25... Nd2 {[%clk 0:01:57.2]} 26. Qd1 {[%clk 0:00:34.5]} 26...
Nxf1 {[%clk 0:01:53.9]} 27. Bd4 {[%clk 0:00:25]} 27... Ne3 {[%clk 0:01:50]} 28.
Qf3 {[%clk 0:00:15.3]} 28... Qg4 {[%clk 0:01:45.9]} 29. Qxg4 {[%clk 0:00:08.2]}
29... Nxg4 {[%clk 0:01:46.8]} 30. Nb5 {[%clk 0:00:07.7]} 30... Re2 {[%clk
0:01:39.2]} 31. Nxd6 {[%clk 0:00:06.2]} 31... Rd8 {[%clk 0:01:39.4]} 32. Nf5
{[%clk 0:00:05]} 32... Rxd5 {[%clk 0:01:38]} 33. Rf1 {[%clk 0:00:04.1]} 33... g6
{[%clk 0:01:37.5]} 34. Ng3 {[%clk 0:00:02]} 34... Rd2 {[%clk 0:01:33.7]} 35. Bc3
{[%clk 0:00:02.4]} 35... Rd1 {[%clk 0:01:33.8]} 36. h3 {[%clk 0:00:02.6]} 36...
Rxf1+ {[%clk 0:01:27.8]} 37. Nxf1 {[%clk 0:00:03.5]} 37... Rd1 {[%clk
0:01:27.7]} 38. hxg4 {[%clk 0:00:03.6]} 38... Rxf1+ {[%clk 0:01:27.8]} 39. Kh2
{[%clk 0:00:04.3]} 39... Ra1 {[%clk 0:01:27.9]} 40. Bxa5 {[%clk 0:00:03.6]}
40... Rxa4 {[%clk 0:01:28.5]} 41. Bc3 {[%clk 0:00:03.3]} 41... Rxg4 {[%clk
0:01:28.4]} 42. Kh3 {[%clk 0:00:02]} 42... Rc4 {[%clk 0:01:28.3]} 43. g4 {[%clk
0:00:01.7]} 43... f5 {[%clk 0:01:24.8]} 44. gxf5 {[%clk 0:00:01.7]} 44... gxf5
{[%clk 0:01:25.7]} 45. Kg3 {[%clk 0:00:02.4]} 45... Kf7 {[%clk 0:01:25.8]} 46.
Kf3 {[%clk 0:00:03]} 46... Kg6 {[%clk 0:01:26.1]} 47. Bd2 {[%clk 0:00:03.4]}
47... Rc2 {[%clk 0:01:25.9]} 48. Bc3 {[%clk 0:00:03.8]} 48... Kg5 {[%clk
0:01:26.4]} 49. Be5 {[%clk 0:00:03.9]} 49... Rc4 {[%clk 0:01:21.8]} 50. Bc3
{[%clk 0:00:03.3]} 50... h5 {[%clk 0:01:17.5]} 51. Be5 {[%clk 0:00:03]} 51... h4
{[%clk 0:01:16.3]} 52. Bc3 {[%clk 0:00:02.8]} 52... Rc6 {[%clk 0:01:10.4]} 53.
Bd2+ {[%clk 0:00:02.1]} 53... Kh5 {[%clk 0:01:10.1]} 54. Kf4 {[%clk 0:00:02.1]}
54... Rc2 {[%clk 0:01:08.4]} 55. Bc3 {[%clk 0:00:01.5]} 55... h3 {[%clk
0:01:07.5]} 0-1